fUSD/lending_fUSD_20250422
["ID","MTS","AMOUNT","RATE_DAILY","PERIOD"]
[358632325,1745322102038,-170.84,0.0001953,2]
[358632326,1745322102061,-250.0,0.00019701,2]
[358632327,1745322105676,200.0,0.00047663,30]
[358632328,1745322106438,200.0,0.00047663,30]
[358632329,1745322107152,200.0,0.00047663,30]
[358632330,1745322107691,200.0,0.00047663,30]
[358632331,1745322108292,200.0,0.00047663,30]
[358632332,1745322109089,200.0,0.00047663,30]
[358632333,1745322109611,200.0,0.00047663,30]
[358632334,1745322110428,200.0,0.00047663,30]
[358632335,1745322110935,200.0,0.00047663,30]
[358632336,1745322111502,200.0,0.00047663,30]
[358632337,1745322112368,200.0,0.00047663,30]
[358632338,1745322113012,200.0,0.00047663,30]
[358632339,1745322113609,200.0,0.00047663,30]
[358632340,1745322114309,200.0,0.00047663,30]
[358632341,1745322115331,200.0,0.00047663,30]
[358632342,1745322115432,200.0,0.00047663,30]
[358632343,1745322115645,200.0,0.00047663,30]
[358632344,1745322116040,200.0,0.00047663,30]
[358632345,1745322116701,341.099999,0.00047663,30]
[358632346,1745322172493,-179.16,0.0001983,2]
[358632347,1745322219919,500.0,0.00047663,120]
[358632348,1745322233466,704.48,0.00047663,120]
[358632349,1745322252054,1408.96,0.00047663,120]
[358632350,1745322267060,704.61022287,0.00047663,120]
[358632351,1745322286486,704.48,0.00047663,120]
[358632352,1745322343064,-1099.5363345,0.0001989,2]
[358632353,1745322343088,-1200.0,0.00019898,2]
[358632354,1745322343111,-300.0,0.00019899,2]
[358632355,1745322343132,-300.0,0.00019899,2]
[358632356,1745322343154,-12034.65165532,0.000199,2]
[358632357,1745322343176,-17355.7965,0.000199,2]
[358632358,1745322343346,-163.26225417,0.000199,2]
[358632359,1745322343374,-196.70592184,0.000199,2]
[358632360,1745322343396,-779.89437434,0.000199,2]
[358632361,1745322343419,-10676.99205751,0.000199,2]
[358632362,1745322343442,-4020.82994869,0.000199,2]
[358632363,1745322343463,-169.72532865,0.000199,2]
[358632364,1745322343485,-591.95538258,0.00019973,2]
[358632365,1745322343506,-500.0,0.00019973,2]
[358632366,1745322343528,-479.78846199,0.00019973,2]
[358632367,1745322343552,-152.93193319,0.00019973,2]
[358632368,1745322343574,-500.0,0.00019973,2]
[358632369,1745322343597,-3535.269,0.00019973,2]
[358632370,1745322343619,-181.75,0.00019973,2]
[358632371,1745322343642,-300.0,0.00019999,2]
[358632372,1745322343664,-167.29826334,0.00019999,2]
[358632373,1745322343686,-500.0,0.00019999,2]
[358632374,1745322343708,-679.06196118,0.00019999,2]
[358632375,1745322343731,-500.0,0.00019999,2]
[358632376,1745322343753,-500.0,0.00019999,2]
[358632377,1745322343775,-500.0,0.00019999,2]
[358632378,1745322343798,-500.0,0.00019999,2]
[358632379,1745322343820,-500.0,0.00019999,2]
[358632380,1745322343842,-2001.62968827,0.00019999,2]
[358632381,1745322343867,-1357552.92093443,0.0002,2]
[358632382,1745322351211,423.34,0.00047663,30]
[358632383,1745322357109,34800.78216735,0.00047663,45]
[358632384,1745322406044,2230.92,0.00047663,120]
[358632385,1745322414852,500.0,0.00047663,120]
[358632386,1745322415086,500.0,0.00047663,120]
[358632387,1745322415428,500.0,0.00047663,120]
[358632388,1745322415657,500.0,0.00047663,120]
[358632389,1745322415985,500.0,0.00047663,120]
[358632390,1745322416341,500.0,0.00047663,120]
[358632391,1745322416455,500.0,0.00047663,120]
[358632392,1745322416720,500.0,0.00047663,120]
[358632393,1745322432633,2230.84,0.00047663,120]
[358632394,1745322461900,338.15,0.0002709,120]
[358632395,1745322499954,200.0,0.00047663,30]
[358632405,1745322632767,-1200.0,0.00019899,2]
[358632406,1745322632778,-300.0,0.00019899,2]
[358632407,1745322632787,-300.0,0.00019899,2]
[358632408,1745322632798,-42586.89038724,0.000199,2]
[358632409,1745322632808,-519.9295829,0.000199,2]
[358632410,1745322632818,-169.72532864,0.000199,2]
[358632411,1745322632827,-2680.55329912,0.000199,2]
[358632412,1745322632837,-399.05884481,0.000199,2]
[358632413,1745322632847,-500.0,0.00019973,2]
[358632414,1745322632858,-500.0,0.00019999,2]
[358632415,1745322632868,-500.0,0.00019999,2]
[358632416,1745322632878,-500.0,0.00019999,2]
[358632417,1745322632888,-1108.53967746,0.00019999,5]
[358632418,1745322632898,-21040.1488868,0.0002,2]
[358632437,1745322637962,-2354.51431202,0.0002,2]
[358632439,1745322637976,-3962.55749776,0.0002,2]
[358632442,1745322637991,-3110.01716113,0.0002,2]
[358632444,1745322638006,-2048.003565,0.0002,2]
[358632445,1745322638020,-4059.62035122,0.0002,2]
[358632446,1745322638035,-3158.92017496,0.0002,2]
[358632447,1745322638050,-4184.156181,0.0002,2]
[358632448,1745322638064,-44285.15432171,0.0002,2]
[358632449,1745322638116,-287.43890734,0.0002,2]
[358632450,1745322638170,-2156595.61014418,0.0002,2]
[358632451,1745322638183,-2841484.45086265,0.0002,2]
[358632643,1745322640148,-323.93180001,0.0002,2]
[358632925,1745322642927,-73218.46039742,0.0002,2]
[358633569,1745322653741,-4302.72220675,0.0002,2]
[358633570,1745322679076,336.53846,0.0002573,36]
[358633571,1745322679197,336.53847,0.0002511,34]
[358633572,1745322679317,336.53847,0.0002323,30]
[358633573,1745322679365,336.53847,0.0002385,32]
[358633574,1745322679405,336.53847,0.0002448,33]
[358633575,1745322687290,2622.9480336,0.00047665,30]
[358633576,1745322693476,1500.0,0.00047665,120]
[358633577,1745322772242,150.0,0.00047665,30]
[358633578,1745322772894,207.1,0.00047665,30]
[358633581,1745322852424,1448.11,0.00019065,2]
[358633582,1745322928014,6000.0,0.00047651,120]
[358633583,1745322946451,512.353141,0.00047651,30]
[358633584,1745322992084,200.0,0.00047651,30]
[358633585,1745322992447,200.0,0.00047651,30]
[358633586,1745322992731,200.0,0.00047651,30]
[358633587,1745322993167,200.0,0.00047651,30]
[358633588,1745322993540,200.0,0.00047651,30]
[358633589,1745322994858,200.0,0.00047651,30]
[358633590,1745322995326,200.0,0.00047651,30]
[358633591,1745322995638,200.0,0.00047651,30]
[358633592,1745322996012,200.0,0.00047651,30]
[358633593,1745322996452,200.0,0.00047651,30]
[358633594,1745322996792,200.0,0.00047651,30]
[358633595,1745322997200,200.0,0.00047651,30]
[358633596,1745322997966,200.0,0.00047651,30]
[358633597,1745322998336,200.0,0.00047651,30]
[358633598,1745322998804,200.0,0.00047651,30]
[358633599,1745322999288,200.0,0.00047651,30]
[358633600,1745322999631,200.0,0.00047651,30]
[358633601,1745323000157,200.0,0.00047651,30]
[358633602,1745323000554,341.099999,0.00047651,30]
[358633604,1745323035000,423.36,0.00047651,120]
[358633605,1745323324400,151.0,0.0004765,120]
[358633606,1745323325061,151.0,0.0004765,120]
[358633607,1745323325684,151.0,0.0004765,120]
[358633608,1745323326506,151.0,0.0004765,120]
[358633609,1745323326541,269.30144093,0.0004765,120]
[358633610,1745323326937,200.0,0.0004765,120]
[358633611,1745323327190,151.0,0.0004765,120]
[358633612,1745323327526,207.4,0.0004765,120]
[358633613,1745323327858,151.0,0.0004765,120]
[358633614,1745323328156,215.0738,0.0004765,120]
[358633615,1745323329098,151.0,0.0004765,120]
[358633616,1745323329230,223.0315306,0.0004765,120]
[358633617,1745323329351,151.0,0.0004765,120]
[358633618,1745323329486,231.28369723,0.0004765,120]
[358633619,1745323329980,151.0,0.0004765,120]
[358633620,1745323330187,239.84119403,0.0004765,120]
[358633621,1745323330683,151.0,0.0004765,120]
[358633622,1745323330841,248.71531821,0.0004765,120]
[358633623,1745323331321,151.0,0.0004765,120]
[358633624,1745323331791,257.91778498,0.0004765,120]
[358633625,1745323331988,151.0,0.0004765,120]
[358633626,1745323332463,267.46074303,0.0004765,120]
[358633627,1745323332643,151.0,0.0004765,120]
[358633628,1745323333121,277.35679052,0.0004765,120]
[358633629,1745323333532,151.0,0.0004765,120]
[358633630,1745323333766,287.61899177,0.0004765,120]
[358633631,1745323334183,151.0,0.0004765,120]
[358633632,1745323334510,298.26089446,0.0004765,120]
[358633633,1745323334864,151.0,0.0004765,120]
[358633634,1745323335200,309.29654756,0.0004765,120]
[358633635,1745323335735,151.0,0.0004765,120]
[358633636,1745323335824,320.74051982,0.0004765,120]
[358633637,1745323336204,151.0,0.0004765,120]
[358633638,1745323336598,332.60791905,0.0004765,120]
[358633639,1745323336889,151.0,0.0004765,120]
[358633640,1745323337642,151.0,0.0004765,120]
[358633641,1745323337827,344.91441206,0.0004765,120]
[358633642,1745323338491,357.6762453,0.0004765,120]
[358633643,1745323339581,370.91026638,0.0004765,120]
[358633644,1745323339798,384.63394623,0.0004765,120]
[358633645,1745323340455,384.63394623,0.0004765,120]
[358633646,1745323546727,500.0,0.0004765,120]
[358633647,1745323546970,500.0,0.0004765,120]
[358633648,1745323547189,500.0,0.0004765,120]
[358633649,1745323547431,500.0,0.0004765,120]
[358633650,1745323547751,500.0,0.0004765,120]
[358633651,1745323548373,500.0,0.0004765,120]
[358633652,1745323548600,500.0,0.0004765,120]
[358633653,1745323548837,500.0,0.0004765,120]
[358633654,1745323549079,500.0,0.0004765,120]
[358633655,1745323549363,500.0,0.0004765,120]
[358633656,1745323576710,4000.0,0.0004765,34]
[358633657,1745323626353,297.76551043,0.0004765,120]
[358633658,1745323626421,200.0,0.0004765,120]
[358633659,1745323627150,207.4,0.0004765,120]
[358633660,1745323627783,215.0738,0.0004765,120]
[358633661,1745323628412,223.0315306,0.0004765,120]
[358633662,1745323629172,231.28369723,0.0004765,120]
[358633663,1745323629851,239.84119403,0.0004765,120]
[358633664,1745323630498,248.71531821,0.0004765,120]
[358633665,1745323631694,257.91778498,0.0004765,120]
[358633666,1745323632396,267.46074303,0.0004765,120]
[358633667,1745323633357,277.35679052,0.0004765,120]
[358633668,1745323633708,287.61899177,0.0004765,120]
[358633669,1745323634505,298.26089446,0.0004765,120]
[358633670,1745323635046,309.29654756,0.0004765,120]
[358633671,1745323635695,320.74051982,0.0004765,120]
[358633672,1745323636358,332.60791905,0.0004765,120]
[358633673,1745323637036,344.91441206,0.0004765,120]
[358633674,1745323637655,357.6762453,0.0004765,120]
[358633675,1745323638306,370.91026638,0.0004765,120]
[358633676,1745323638988,384.63394623,0.0004765,120]
[358633677,1745323639640,384.63394623,0.0004765,120]
[358633678,1745323674394,5000.0,0.0004765,36]
[358633679,1745323819267,34000.0,0.0004765,120]
[358633680,1745323830883,250.0,0.000192,2]
[358633683,1745323831969,-200.0,0.00019229,2]
[358633684,1745323831979,-1374.6,0.0001927,2]
[358633685,1745323831990,-6120.56,0.00019311,2]
[358633686,1745323832000,-900.0,0.00019499,2]
[358633687,1745323832010,-169.737325,0.000195,2]
[358633688,1745323832020,-189.57488143,0.000195,2]
[358633689,1745323832029,-300.0,0.00019599,2]
[358633690,1745323832038,-300.0,0.00019599,2]
[358633691,1745323832047,-3108.676,0.000196,2]
[358633692,1745323832057,-181.75,0.000196,2]
[358633693,1745323832067,-332.92871095,0.000197,2]
[358633694,1745323832076,-1987.75,0.00019857,2]
[358633695,1745323832086,-774.3907,0.000199,2]
[358633696,1745323832095,-1356.36015741,0.000199,2]
[358633894,1745323838178,-1761.10084259,0.000199,2]
[358633895,1745323838189,-717.5299,0.000199,2]
[358633896,1745323838199,-8240.9787,0.000199,2]
[358633897,1745323838208,-209.78526194,0.000199,2]
[358633898,1745323838218,-188.07203924,0.000199,2]
[358633899,1745323838229,-2144.94412601,0.000199,2]
[358633900,1745323838238,-169.72532864,0.000199,2]
[358633901,1745323838247,-591.16546354,0.000199,2]
[358633902,1745323838257,-266.03922986,0.000199,2]
[358633903,1745323838266,-500.0,0.00019973,2]
[358633904,1745323838276,-182.84227121,0.0001999,2]
[358633905,1745323838286,-162.66,0.0001999,2]
[358633906,1745323838295,-162.66,0.0001999,2]
[358633907,1745323838305,-162.66,0.0001999,2]
[358633908,1745323838314,-162.66,0.0001999,2]
[358633909,1745323838323,-500.0,0.00019999,2]
[358633910,1745323838333,-500.0,0.00019999,2]
[358633912,1745323838342,-500.0,0.00019999,2]
[358633914,1745323838352,-500.0,0.00019999,2]
[358633916,1745323838362,-31936.73,0.00019999,2]
[358633918,1745323838371,-214.58537518,0.00019999,2]
[358633919,1745323838380,-182.77594139,0.00019999,2]
[358633921,1745323838390,-211.63116846,0.00019999,2]
[358633923,1745323838400,-2144145.29252804,0.0002,2]
[358633925,1745323838412,-210140.21564637,0.0002,2]
[358633928,1745323838422,-20164.81324046,0.0002,2]
[358633930,1745323838432,-10000.0,0.0002,2]
[358633931,1745323838442,-4298.67101222,0.0002,2]
[358633932,1745323838452,-8767.13203376,0.0002,2]
[358633933,1745323838461,-2595041.51559127,0.0002,2]
[358633934,1745323838490,-7934.6169763,0.0002,2]
[358634101,1745323840282,-285.98821436,0.0002,2]
[358634142,1745323840665,-472.68509142,0.0002,2]
[358634479,1745323844204,-18345.69122021,0.0002,2]
[358634481,1745323844216,-1062.32831926,0.0002,2]
[358634485,1745323844246,-2573.82474384,0.0002,2]
[358634677,1745323855402,1375.7,0.00018931,2]
[358634678,1745323906028,200.0,0.0004765,30]
[358634679,1745323906521,200.0,0.0004765,30]
[358634680,1745323906862,200.0,0.0004765,30]
[358634681,1745323907203,200.0,0.0004765,30]
[358634682,1745323907951,200.0,0.0004765,30]
[358634683,1745323909034,200.0,0.0004765,30]
[358634684,1745323909132,200.0,0.0004765,30]
[358634685,1745323909305,200.0,0.0004765,30]
[358634686,1745323909493,200.0,0.0004765,30]
[358634687,1745323909877,200.0,0.0004765,30]
[358634688,1745323910333,200.0,0.0004765,30]
[358634689,1745323910670,200.0,0.0004765,30]
[358634690,1745323911083,200.0,0.0004765,30]
[358634691,1745323911435,249.589999,0.0004765,30]
[358634692,1745323926216,200.0,0.0004765,120]
[358634693,1745323926903,207.4,0.0004765,120]
[358634694,1745323927535,215.0738,0.0004765,120]
[358634695,1745323928736,223.0315306,0.0004765,120]
[358634696,1745323929755,231.28369723,0.0004765,120]
[358634697,1745323930099,239.84119403,0.0004765,120]
[358634698,1745323930749,248.71531821,0.0004765,120]
[358634699,1745323931386,257.91778498,0.0004765,120]
[358634700,1745323932035,267.46074303,0.0004765,120]
[358634701,1745323932672,277.35679052,0.0004765,120]
[358634702,1745323933350,287.61899177,0.0004765,120]
[358634703,1745323933993,298.26089446,0.0004765,120]
[358634704,1745323934656,309.29654756,0.0004765,120]
[358634705,1745323935345,320.74051982,0.0004765,120]
[358634706,1745323935968,332.60791905,0.0004765,120]
[358634707,1745323936608,344.91441206,0.0004765,120]
[358634708,1745323937285,357.6762453,0.0004765,120]
[358634709,1745323937918,370.91026638,0.0004765,120]
[358634710,1745323938556,384.63394623,0.0004765,120]
[358634711,1745323939242,384.63394623,0.0004765,120]
[358634712,1745324147492,1000.0,0.0004765,30]
[358634713,1745324148051,1000.0,0.0004765,30]
[358634714,1745324148627,792.27694342,0.0004765,30]
[358634715,1745324199709,500.0,0.0004765,120]
[358634716,1745324200003,500.0,0.0004765,120]
[358634717,1745324200297,500.0,0.0004765,120]
[358634718,1745324200495,500.0,0.0004765,120]
[358634719,1745324200734,500.0,0.0004765,120]
[358634720,1745324200983,500.0,0.0004765,120]
[358634721,1745324201240,500.0,0.0004765,120]
[358634722,1745324201502,500.0,0.0004765,120]
[358634723,1745324226496,200.0,0.0004765,120]
[358634724,1745324227142,207.4,0.0004765,120]
[358634725,1745324228413,207.4,0.0004765,120]
[358634726,1745324336841,-2486.941,0.000196,2]
[358634727,1745324336868,-181.75,0.000196,2]
[358634728,1745324336896,-6708.16140759,0.000199,2]
[358634729,1745324336927,-250.0,0.00019949,2]
[358634730,1745324336955,-500.0,0.00019973,2]
[358634731,1745324336982,-500.0,0.00019973,2]
[358634732,1745324337010,-300.0,0.00019997,2]
[358634733,1745324337036,-3520.41933805,0.00019998,2]
[358634734,1745324337062,-300.0,0.00019999,2]
[358634735,1745324337089,-35252.72825436,0.0002,2]
[358634736,1745324342329,-663.0695,0.000199,2]
[358634737,1745324342355,-49336.9305,0.0002,2]
[358634738,1745324346440,-50000.0,0.0002,2]
[358634739,1745324349152,-50000.0,0.0002,2]
[358634740,1745324350103,-50000.0,0.0002,2]
[358634741,1745324350991,-50000.0,0.0002,2]
[358634742,1745324351775,-50000.0,0.0002,2]
[358634743,1745324352637,-50000.0,0.0002,2]
[358634744,1745324353458,-50000.0,0.0002,2]
[358634745,1745324354305,-50000.0,0.0002,2]
[358634746,1745324355409,-50000.0,0.0002,2]
[358634747,1745324356324,-50000.0,0.0002,2]
[358634748,1745324357272,-50000.0,0.0002,2]
[358634749,1745324358054,-50000.0,0.0002,2]
[358634750,1745324358963,-50000.0,0.0002,2]
[358634751,1745324359774,-50000.0,0.0002,2]
[358634752,1745324360656,-50000.0,0.0002,2]
[358634753,1745324361520,-50000.0,0.0002,2]
[358634754,1745324362317,-50000.0,0.0002,2]
[358634755,1745324363172,-50000.0,0.0002,2]
[358634756,1745324498582,1029.0,0.00047602,120]
[358634757,1745324523969,230.40495176,0.00047602,120]
[358634758,1745324713875,706.76895427,0.00047601,30]
[358634759,1745324762654,370.18889648,0.00047601,90]
[358634760,1745324771697,270.52,0.0002606,120]
[358634761,1745324771781,270.52,0.00028667,120]
[358634762,1745324771859,160.42868448,0.00047601,60]
[358634763,1745324775570,179.14742983,0.00047601,30]
[358634764,1745324797016,500.0,0.00047601,120]
[358634765,1745324797260,500.0,0.00047601,120]
[358634766,1745324797495,500.0,0.00047601,120]
[358634767,1745324797803,500.0,0.00047601,120]
[358634768,1745324798042,500.0,0.00047601,120]
[358634769,1745324798294,500.0,0.00047601,120]
[358634770,1745324798530,500.0,0.00047601,120]
[358634771,1745324798795,284.44545112,0.00047601,120]
[358634772,1745324822068,3127.06880023,0.00015,14]
[358634773,1745324836514,1988.57998152,0.00047601,120]
[358634774,1745324837195,246.85556495,0.00047601,120]
[358634776,1745324858493,613.19191417,0.00047601,120]
[358634777,1745324862878,3175.85592487,0.00047601,120]
[358634778,1745324876630,616.30253207,0.00047601,120]
[358634780,1745324887530,285.77499473,0.00047601,120]
[358634782,1745324910663,526.19,0.00018828,2]
[358634783,1745324910694,788.34,0.00018828,2]
[358634784,1745324910836,301.0,0.00047601,30]
[358634785,1745324914499,205.4222402,0.00047601,30]
[358634786,1745324915752,1292.49726693,0.00047601,120]
[358634787,1745324917486,480.22285625,0.00047601,30]
[358634788,1745324917516,1406.48544456,0.00047601,30]
[358634789,1745324917556,236.70445888,0.00047601,120]
[358634790,1745324917585,2083.44460082,0.00047601,120]
[358634791,1745324917770,2788.41430749,0.00047601,120]
[358634792,1745324918399,269.05819823,0.00047601,30]
[358634793,1745324918745,207.03927748,0.00047601,30]
[358634794,1745324918834,366.11229918,0.00047601,30]
[358634795,1745324920036,317.55383141,0.00047601,120]
[358634796,1745324920068,195.65637176,0.00047601,30]
[358634797,1745324921387,2485.76382517,0.00047601,30]
[358634798,1745324921742,1492.19551287,0.00047601,120]
[358634799,1745324923480,540.09882036,0.00047601,120]
[358634800,1745324923540,1743.79602156,0.00047601,120]
[358634802,1745324927411,567.21570646,0.00047601,120]
[358634805,1745324928302,1775.67240429,0.00047601,30]
[358634806,1745324928850,269.91322582,0.00047601,120]
[358634807,1745324931637,169.64078839,0.00047601,30]
[358634808,1745324931681,3600.0,0.00013368,2]
[358634810,1745324933329,1945.0,0.00047601,30]
[358634811,1745324933445,2451.39315094,0.00047601,50]
[358634812,1745324933499,596.19858933,0.00047601,30]
[358634813,1745324933532,1211.96823972,0.00047601,30]
[358634814,1745324933569,2612.00199569,0.00047601,120]
[358634821,1745324978312,-300.0,0.00019899,2]
[358634822,1745324978340,-188.07203924,0.000199,2]
[358634823,1745324978367,-177.35948658,0.000199,2]
[358634824,1745324978397,-500.0,0.00019973,2]
[358634825,1745324978424,-500.0,0.00019973,2]
[358634826,1745324993023,1334.56847418,0.000199,2]
[358634827,1745324993054,452.46705856,0.000199,2]
[358634828,1745324993206,2547.53294144,0.000199,2]
[358634830,1745324996523,-3000.0,0.000199,2]
[358634831,1745324997281,-3000.0,0.000199,2]
[358634832,1745325000609,-3000.0,0.000199,2]
[358634833,1745325001507,-900.0,0.00019899,2]
[358634834,1745325001533,-2100.0,0.000199,2]
[358634835,1745325002241,-3000.0,0.000199,2]
[358634836,1745325002679,2000.0,0.0002,4]
[358634837,1745325005911,-3000.0,0.000199,2]
[358634838,1745325010775,-300.0,0.00019899,2]
[358634839,1745325010803,-2700.0,0.000199,2]
[358634840,1745325012859,-3000.0,0.000199,2]
[358634841,1745325013785,-3000.0,0.000199,2]
[358634842,1745325022166,-3000.0,0.000199,2]
[358634851,1745325032296,-538.54954752,0.000199,2]
[358634852,1745325032352,-417.17482944,0.000199,2]
[358634882,1745325038375,-2659.38,0.000199,2]
[358635061,1745325040702,-4156.51517547,0.000199,2]
[358635094,1745325041013,-5126.69009862,0.000199,2]
[358635373,1745325043871,-1250.35634264,0.000199,2]
[358635375,1745325043884,-14877.25373291,0.000199,2]
[358635377,1745325043893,-394.11030902,0.000199,2]
[358635379,1745325043903,-500.0,0.00019999,2]
[358635381,1745325043914,-500.0,0.00019999,2]
[358635383,1745325043924,-150.20976263,0.00019999,2]
[358635385,1745325043933,-20404.28657123,0.0002,2]
[358635605,1745325046181,-2786.10486803,0.0002,2]
[358635612,1745325046234,-400709.00000766,0.0002,2]
[358635634,1745325046453,-606.03431999,0.0002,2]
[358636573,1745325188159,156.73,0.00047601,30]
[358636574,1745325311881,23204.2250011,0.0002,7]
[358636575,1745325334431,500.0,0.00047601,120]
[358636576,1745325334691,500.0,0.00047601,120]
[358636577,1745325334928,500.0,0.00047601,120]
[358636578,1745325335178,500.0,0.00047601,120]
[358636579,1745325335475,500.0,0.00047601,120]
[358636580,1745325335697,500.0,0.00047601,120]
[358636581,1745325336217,500.0,0.00047601,120]
[358636582,1745325336266,500.0,0.00047601,120]
[358636583,1745325336418,500.0,0.00047601,120]
[358636584,1745325336671,500.0,0.00047601,120]
[358636585,1745325410864,1000.0,0.00047601,30]
[358636586,1745325411483,1000.0,0.00047601,30]
[358636587,1745325411898,1000.0,0.00047601,30]
[358636588,1745325412269,1000.0,0.00047601,30]
[358636589,1745325412582,1000.0,0.00047601,30]
[358636590,1745325412904,1000.0,0.00047601,30]
[358636591,1745325413250,1000.0,0.00047601,30]
[358636592,1745325413611,1000.0,0.00047601,30]
[358636593,1745325413949,1000.0,0.00047601,30]
[358636594,1745325414305,1000.0,0.00047601,30]
[358636595,1745325475259,-200.25696919,0.000198,2]
[358636596,1745325475289,-268.77238642,0.000198,2]
[358636597,1745325475320,-640.97064439,0.00019899,2]
[358636598,1745325494714,1017.0,0.00047601,30]
[358636601,1745325541139,2000.0,0.00047597,120]
[358636604,1745325816070,500.0,0.00047597,120]
[358636605,1745325852439,573.393,0.00047597,120]
[358636606,1745325983155,999.39223342,0.00047597,30]
[358636607,1745326133976,1248.8,0.00018642,2]
[358636613,1745326202101,292.06455782,0.0002,4]
[358636627,1745326232444,-200.0,0.00019739,2]
[358636628,1745326232455,-200.0,0.0001974,2]
[358636629,1745326232465,-99.78192115,0.0001974,2]
[358636630,1745326232478,-100.21807885,0.0001974,2]
[358636631,1745326232488,-200.0,0.00019819,2]
[358636632,1745326232499,-150.0,0.00019863,2]
[358636633,1745326232510,-257.76960667,0.0001989,2]
[358636634,1745326232519,-300.0,0.00019899,2]
[358636635,1745326232529,-900.0,0.00019899,2]
[358636636,1745326232539,-300.0,0.00019899,2]
[358636637,1745326232549,-203.61303809,0.000199,2]
[358636638,1745326232558,-11011.97932289,0.000199,2]
[358636639,1745326232568,-177.35948657,0.000199,2]
[358636640,1745326232578,-11499.70527012,0.000199,2]
[358636641,1745326232588,-290.01632338,0.000199,2]
[358636642,1745326232598,-262.74020602,0.000199,2]
[358636643,1745326232608,-10073.1190688,0.00019986,2]
[358636644,1745326232618,-500.0,0.00019999,2]
[358636645,1745326232628,-500.0,0.00019999,2]
[358636646,1745326232638,-500.0,0.00019999,2]
[358636647,1745326232648,-1010.6538,0.00019999,2]
[358636648,1745326232659,-151.0,0.00019999,2]
[358636649,1745326232668,-155.48291855,0.00019999,2]
[358636651,1745326232678,-958.17368247,0.00019999,2]
[358636653,1745326232688,-5182.4592188,0.00019999,2]
[358636659,1745326232775,-3885.01216946,0.00019999,2]
[358636661,1745326232785,-126501.04968487,0.0002,2]
[358636663,1745326232794,-300.0,0.0002,2]
[358636665,1745326232803,-277.56353789,0.0002,2]
[358636666,1745326232813,-394290.24658444,0.0002,2]
[358636694,1745326238533,-958.17368247,0.00019999,2]
[358636695,1745326238542,-958.17368247,0.00019999,2]
[358636696,1745326238552,-958.17368247,0.00019999,2]
[358636697,1745326238563,-151.0,0.00019999,2]
[358636698,1745326238572,-151.0,0.00019999,2]
[358636699,1745326238582,-151.0,0.00019999,2]
[358636700,1745326238593,-23297.51791564,0.0002,2]
[358636701,1745326238853,-432.34849617,0.0002,2]
[358636702,1745326238911,-581.73175628,0.0002,2]
[358636881,1745326240845,-6213.05986366,0.0002,2]
[358636883,1745326240857,-13745.68,0.0002,2]
[358636893,1745326240953,-8864.3555,0.0002,2]
[358637156,1745326243419,-10571.99147269,0.0002,2]
[358637168,1745326243591,-2593.376,0.0002,2]